bitfinex-derivatives/quotes_BTCF0:USTF0_20210705
["timestamp","ask_amount","ask_price","bid_price","bid_amount"]
[1625505951985,4.62695506,33587.0,33585.0,0.03197679]
[1625505952386,3.62255473,33586.0,33585.0,0.03197679]
[1625505952586,3.68155473,33586.0,33585.0,0.03197679]
[1625505954142,3.68155473,33586.0,33584.0,0.03197672]
[1625505954341,3.68155473,33586.0,33584.0,1.08729966]
[1625505954692,3.68155473,33586.0,33585.0,0.03197672]
[1625505954791,3.68155473,33586.0,33585.0,0.24937672]
[1625505954893,1.43899621,33586.0,33585.0,0.24937672]
[1625505955195,1.43899621,33586.0,33585.0,0.27583997]
[1625505955413,1.37999621,33586.0,33585.0,0.33483997]
[1625505955505,4.31257683,33586.0,33585.0,1.03837017]
[1625505955608,4.31257683,33586.0,33585.0,1.09737017]
[1625505956047,0.72172632,33587.0,33585.0,1.09737017]
[1625505956048,1.41277842,33587.0,33585.0,4.7905092]
[1625505956298,1.41277842,33587.0,33586.0,0.0582025]
[1625505956399,1.41277842,33587.0,33586.0,0.1762025]
[1625505956600,1.93118047,33587.0,33586.0,5.10033094]
[1625505957003,1.24012837,33587.0,33586.0,5.10033094]
[1625505957200,0.99955293,33587.0,33586.0,5.58148182]
[1625505957301,1.345297,33587.0,33586.0,5.58148182]
[1625505957399,0.6911822,33588.0,33586.0,5.58148182]
[1625505957499,1.03668692,33589.0,33586.0,5.58148182]
[1625505957602,1.03704093,33590.0,33586.0,5.58148182]
[1625505957867,1.03704093,33590.0,33587.0,0.05819772]
[1625505957950,1.03704093,33590.0,33587.0,0.11719772]
[1625505958051,1.03815162,33593.0,33589.0,3.69259457]
[1625505958250,1.03815162,33593.0,33589.0,3.75159457]
[1625505958351,1.21075422,33594.0,33592.0,2.28588594]
[1625505958453,1.26975422,33594.0,33592.0,2.58758594]
[1625505958650,1.26975422,33594.0,33593.0,0.03165232]
[1625505958853,1.26975422,33594.0,33593.0,1.08666118]
[1625505959201,1.26975422,33594.0,33593.0,1.56781206]
[1625505959303,2.30740993,33594.0,33593.0,1.56781206]
[1625505964866,1.09665571,33594.0,33593.0,2.79834486]
[1625505965416,1.43170571,33594.0,33591.0,1.4063232]
[1625505965523,1.49070571,33594.0,33591.0,1.4063232]
[1625505965615,1.38293464,33592.0,33591.0,1.4063232]
[1625505965714,1.38293464,33592.0,33586.0,1.40625118]
[1625505965861,1.44193464,33592.0,33586.0,1.40625118]
[1625505965918,4.9004,33587.0,33586.0,1.40625118]
[1625505966014,4.9004,33587.0,33582.0,0.9852]
[1625505966015,5.12777,33587.0,33582.0,0.9852]
[1625505966140,5.18677,33587.0,33581.0,1.40653933]
[1625505966367,5.18677,33587.0,33582.0,0.03154991]
[1625505966465,5.18677,33587.0,33582.0,0.05801229]
[1625505966466,6.5702845,33587.0,33582.0,0.05801229]
[1625505966564,6.6292845,33587.0,33582.0,0.05801229]
[1625505967315,0.48115088,33583.0,33582.0,0.29858773]
[1625505967515,0.54015088,33583.0,33582.0,0.29858773]
[1625505969068,0.54015088,33583.0,33582.0,0.27212535]
[1625505969371,0.54015088,33583.0,33582.0,0.25448377]
[1625505970371,1.92543277,33583.0,33582.0,0.25448377]
[1625505973474,1.92543277,33583.0,33582.0,0.01390833]
[1625505973884,1.92543277,33583.0,33579.0,0.01379632]
[1625505974175,1.92543277,33583.0,33580.0,0.01379576]
[1625505974675,1.38460786,33582.0,33580.0,0.01379576]
[1625505974773,1.44360786,33582.0,33580.0,0.01379576]
[1625505975175,1.44360786,33582.0,33579.0,0.01379563]
[1625505975374,1.6841833,33582.0,33579.0,0.01379563]
[1625505975476,1.6841833,33582.0,33581.0,0.01379569]
[1625505975674,1.6841833,33582.0,33581.0,0.00497321]
[1625505975773,1.6841833,33582.0,33579.0,0.01379576]
[1625505975975,1.6841833,33582.0,33581.0,0.01379576]
[1625505976274,1.6841833,33582.0,33580.0,0.01379572]
[1625505976527,0.29957544,33582.0,33579.0,0.01379738]
[1625505977026,0.29957544,33582.0,33579.0,0.07279738]
[1625505977126,0.24057544,33582.0,33579.0,0.07279738]
[1625505977377,0.24057544,33582.0,33581.0,0.24057544]
[1625505977478,0.24057544,33582.0,33581.0,0.61846544]
[1625505977677,0.24057544,33582.0,33581.0,0.63226164]
[1625505977981,0.24057544,33582.0,33581.0,0.64990614]
[1625505978880,0.24057544,33582.0,33581.0,0.33101614]
[1625505980383,0.29957544,33582.0,33581.0,0.33101614]
[1625505980485,0.24057544,33582.0,33581.0,0.33101614]
[1625505980582,0.29957544,33582.0,33581.0,0.33101614]
[1625505980695,0.29957544,33582.0,33581.0,0.27201614]
[1625505980834,0.29957544,33582.0,33581.0,0.24554923]
[1625505980935,0.29957544,33582.0,33581.0,0.24057544]
[1625505981034,0.29957544,33582.0,33581.0,0.25437177]
[1625505981236,0.29957544,33582.0,33581.0,0.26816819]
[1625505981485,0.12312397,33582.0,33581.0,0.26816819]
[1625505983042,0.06412397,33582.0,33581.0,0.26816819]
[1625505983340,0.12312397,33582.0,33581.0,0.26816819]
[1625505985997,1.33847875,33582.0,33581.0,0.26816819]
[1625505993364,2.72685329,33582.0,33581.0,0.26816819]
[1625505993968,1.33847875,33582.0,33581.0,0.26816819]
[1625505994066,1.33847875,33582.0,33581.0,0.25437186]
[1625505994467,2.72680245,33582.0,33581.0,0.25437186]
[1625505996117,3.76775217,33582.0,33581.0,0.25437186]
[1625505996621,3.5912806,33582.0,33581.0,0.29848976]
[1625505998720,3.5912806,33582.0,33581.0,0.25437186]
[1625506003428,3.6502806,33582.0,33581.0,0.25437186]
[1625506003530,3.5912806,33582.0,33581.0,0.25437186]
[1625506003629,3.6502806,33582.0,33581.0,0.25437186]
[1625506003729,3.5912806,33582.0,33581.0,0.25437186]
[1625506004181,3.6502806,33582.0,33581.0,0.25437186]
[1625506006035,3.5912806,33582.0,33581.0,0.25437186]
[1625506006185,3.6502806,33582.0,33581.0,0.25437186]
[1625506006942,3.5912806,33582.0,33581.0,0.25437186]
[1625506007141,3.6502806,33582.0,33581.0,0.25437186]
[1625506010193,3.5912806,33582.0,33581.0,0.25437186]
[1625506011700,3.8595706,33582.0,33581.0,0.25437186]
[1625506011800,3.68310894,33582.0,33581.0,0.25437186]
[1625506013205,2.29478524,33582.0,33581.0,0.25437186]
[1625506013457,3.68725873,33582.0,33581.0,0.25437186]
[1625506013906,2.29478524,33582.0,33581.0,0.25437186]
[1625506015113,3.68710397,33582.0,33581.0,0.25437186]
[1625506017718,4.3832621,33582.0,33581.0,0.25437186]
[1625506019675,4.3832621,33582.0,33581.0,0.27201749]
[1625506020224,4.3832621,33582.0,33581.0,0.97552058]
[1625506020474,4.3832621,33582.0,33581.0,1.00198915]
[1625506020724,4.3832621,33582.0,33581.0,0.29848606]
[1625506021022,4.3832621,33582.0,33581.0,0.27201749]
[1625506024183,4.3832621,33582.0,33581.0,0.97627772]
[1625506024531,4.3832621,33582.0,33581.0,1.00274673]
[1625506025083,5.94879111,33582.0,33581.0,2.05989527]
[1625506026888,5.77233018,33582.0,33581.0,2.05989527]
[1625506027838,4.20680117,33582.0,33581.0,2.05989527]
[1625506029342,5.77149543,33582.0,33581.0,2.05989527]
[1625506042075,5.5950345,33582.0,33581.0,2.05989527]
[1625506043729,5.5950345,33582.0,33581.0,2.40042527]
[1625506045282,4.03034024,33582.0,33581.0,2.40042527]
[1625506045585,3.76205024,33582.0,33581.0,2.45942527]
[1625506045683,3.76205024,33582.0,33581.0,2.51842527]
[1625506046233,3.76205024,33582.0,33581.0,2.50462885]
[1625506046534,2.36973151,33582.0,33581.0,5.50184037]
[1625506046685,2.36973151,33582.0,33581.0,5.5153479]
[1625506047939,2.89323817,33582.0,33581.0,6.04427177]
[1625506049391,2.26061451,33582.0,33581.0,6.04427177]
[1625506050345,2.26061451,33582.0,33581.0,4.45751273]
[1625506055503,1.21966479,33582.0,33581.0,6.04253438]
[1625506056002,2.26530065,33582.0,33581.0,4.45751273]
[1625506057055,2.08884124,33582.0,33581.0,4.45751273]
[1625506059256,2.08884124,33582.0,33581.0,4.39851273]
[1625506059357,2.08884124,33582.0,33581.0,4.45751273]
[1625506062369,2.08884124,33582.0,33581.0,5.68989763]
[1625506063168,2.08884124,33582.0,33581.0,5.63089763]
[1625506063518,7.30334124,33582.0,33581.0,5.63089763]
[1625506063969,8.52244213,33582.0,33581.0,5.63089763]
[1625506064168,8.52244213,33582.0,33581.0,5.68989763]
[1625506064269,7.30334124,33582.0,33581.0,5.63089763]
[1625506064768,7.30334124,33582.0,33581.0,5.68989763]
[1625506064871,7.30334124,33582.0,33581.0,5.63089763]
[1625506065768,8.52286272,33582.0,33581.0,5.63089763]
[1625506065969,8.52286272,33582.0,33581.0,5.68989763]
[1625506066069,8.52286272,33582.0,33581.0,5.63089763]
[1625506067376,8.52286272,33582.0,33581.0,5.68989763]
[1625506067574,8.52286272,33582.0,33581.0,5.63089763]
[1625506067675,8.52286272,33582.0,33581.0,5.68989763]
[1625506067777,8.52286272,33582.0,33581.0,5.63089763]
[1625506068079,8.52286272,33582.0,33581.0,5.68989763]
[1625506068277,8.52286272,33582.0,33581.0,4.27944515]
[1625506068477,8.52286272,33582.0,33581.0,4.22044515]
[1625506068578,8.52286272,33582.0,33581.0,5.68793667]
[1625506068680,8.52286272,33582.0,33581.0,5.62893667]
[1625506068879,8.52286272,33582.0,33581.0,5.68793667]
[1625506069028,8.52286272,33582.0,33581.0,5.62893667]
[1625506069430,8.52286272,33582.0,33581.0,5.68793667]
[1625506072282,8.34639873,33582.0,33581.0,5.68793667]
[1625506072637,8.34639873,33582.0,33581.0,5.62893667]
[1625506072735,8.34639873,33582.0,33581.0,5.68793667]
[1625506072836,8.34639873,33582.0,33581.0,5.62893667]
[1625506073486,8.34639873,33582.0,33581.0,5.68793667]
[1625506073586,8.34639873,33582.0,33581.0,5.62893667]
[1625506073986,8.34639873,33582.0,33581.0,5.68793667]
[1625506074138,8.34639873,33582.0,33581.0,4.27944515]
[1625506074237,8.34639873,33582.0,33581.0,4.22044515]
[1625506074436,8.34639873,33582.0,33581.0,4.27944515]
[1625506074540,8.34639873,33582.0,33581.0,4.22044515]
[1625506075088,8.34639873,33582.0,33581.0,4.27944515]
[1625506075191,8.34639873,33582.0,33581.0,4.22044515]
[1625506075389,8.34639873,33582.0,33581.0,5.62902755]
[1625506075591,8.34639873,33582.0,33581.0,5.68802755]
[1625506075692,8.34639873,33582.0,33581.0,5.62902755]
[1625506075891,8.34639873,33582.0,33581.0,4.22044515]
[1625506076491,8.34639873,33582.0,33581.0,4.27944515]
[1625506077796,8.34639873,33582.0,33581.0,4.22044515]
[1625506078697,8.34639873,33582.0,33581.0,4.27944515]
[1625506080555,8.34639873,33582.0,33581.0,4.22044515]
[1625506080705,8.34639873,33582.0,33581.0,4.27944515]
[1625506080907,8.34639873,33582.0,33581.0,5.68813743]
[1625506083765,8.34639873,33582.0,33581.0,5.62913743]
[1625506087271,8.16993129,33582.0,33581.0,5.62913743]
[1625506087375,8.16993129,33582.0,33581.0,4.22044515]
[1625506087822,8.16993129,33582.0,33581.0,4.27944515]
[1625506087925,8.16993129,33582.0,33581.0,4.22044515]
[1625506088021,8.16993129,33582.0,33581.0,4.27944515]
[1625506088224,8.16993129,33582.0,33581.0,5.6294583]
[1625506088422,8.16993129,33582.0,33581.0,5.6884583]
[1625506088672,8.16993129,33582.0,33581.0,5.6294583]
[1625506088772,8.16993129,33582.0,33581.0,5.6884583]
[1625506089073,8.16993129,33582.0,33581.0,5.6294583]
[1625506089175,8.16993129,33582.0,33581.0,5.6884583]
[1625506089273,8.16993129,33582.0,33581.0,5.6294583]
[1625506089473,8.16993129,33582.0,33581.0,5.6884583]
[1625506089573,8.16993129,33582.0,33581.0,5.6294583]
[1625506089925,8.16993129,33582.0,33581.0,5.6884583]
[1625506090025,8.16993129,33582.0,33581.0,5.6294583]
[1625506090126,8.16993129,33582.0,33581.0,5.6884583]
[1625506090225,8.16993129,33582.0,33581.0,5.6294583]
[1625506090326,8.16993129,33582.0,33581.0,5.6884583]
[1625506090426,8.16993129,33582.0,33581.0,5.6294583]
[1625506090527,9.56747534,33582.0,33581.0,5.6294583]
[1625506090730,9.56747534,33582.0,33581.0,5.6884583]
[1625506090828,9.56747534,33582.0,33581.0,5.6294583]
[1625506091229,9.56747534,33582.0,33581.0,5.6884583]
[1625506091378,9.56747534,33582.0,33581.0,5.6294583]
[1625506091479,9.56747534,33582.0,33581.0,5.6884583]
[1625506091580,9.56747534,33582.0,33581.0,5.6294583]
[1625506091982,9.56747534,33582.0,33581.0,5.6884583]
[1625506092083,9.56747534,33582.0,33581.0,5.6294583]
[1625506093043,2.61706553,33582.0,33581.0,5.6294583]
[1625506093167,2.61706553,33582.0,33581.0,5.6884583]
[1625506093396,1.21952148,33582.0,33581.0,5.69891229]
[1625506093550,1.04302148,33582.0,33581.0,5.69891229]
[1625506093660,0.94142148,33582.0,33581.0,5.63991229]
[1625506093745,0.64402148,33582.0,33581.0,5.63991229]
[1625506093842,0.54112148,33582.0,33581.0,5.63991229]
[1625506093937,0.27162148,33582.0,33581.0,5.63991229]
[1625506094042,0.61347279,33585.0,33581.0,8.9863015]
[1625506094137,0.61347279,33585.0,33582.0,0.01044849]
[1625506094246,0.61347279,33585.0,33582.0,0.12844849]
[1625506094338,0.54327279,33585.0,33582.0,0.12844849]
[1625506094439,0.54327279,33585.0,33583.0,0.01357806]
[1625506094538,1.57632559,33594.0,33583.0,0.01357806]
[1625506094539,0.52592797,33588.0,33584.0,4.75387026]
[1625506094638,0.52592797,33588.0,33585.0,0.01044459]
[1625506094838,1.40171542,33594.0,33585.0,0.12844459]
[1625506094939,1.40171542,33594.0,33585.0,0.62844459]
[1625506095040,1.40171542,33594.0,33586.0,0.02402019]
[1625506095160,0.17545379,33593.0,33587.0,4.75056576]
[1625506095238,0.17545379,33593.0,33587.0,4.76100866]
[1625506095339,0.17545379,33593.0,33587.0,4.87900866]
[1625506095439,0.17545379,33593.0,33588.0,0.01044265]
[1625506095541,0.17545379,33593.0,33588.0,0.36218147]
[1625506095640,2.67996042,33607.0,33588.0,0.36218147]
[1625506095641,1.40400089,33603.0,33592.0,4.75033329]
[1625506095744,1.40400089,33603.0,33593.0,0.01044174]
[1625506095941,1.40400089,33603.0,33593.0,0.12844174]
[1625506096041,1.40400089,33603.0,33602.0,0.96230176]
[1625506096142,1.40459843,33604.0,33602.0,2.76297082]
[1625506096341,1.40459843,33604.0,33603.0,5.1619]
[1625506096490,0.927,33607.0,33603.0,5.2209]
[1625506096491,1.40467436,33605.0,33603.0,5.2209]
[1625506096590,1.40467436,33605.0,33603.0,5.27854214]
[1625506096791,1.40467436,33605.0,33604.0,0.02645356]
[1625506096891,1.4034139,33606.0,33604.0,0.11664205]
[1625506097342,1.4034139,33606.0,33605.0,0.01355248]
[1625506097444,1.4034139,33606.0,33605.0,0.07255248]
[1625506099198,1.40280319,33607.0,33605.0,0.07255248]
[1625506099449,1.40183982,33606.0,33605.0,0.059]
[1625506099849,1.40183982,33606.0,33605.0,0.07255314]
[1625506101504,1.40183982,33606.0,33605.0,0.01355314]
[1625506101905,1.40183982,33606.0,33605.0,0.07255314]
[1625506102006,1.40183982,33606.0,33605.0,0.059]
[1625506102205,1.40183982,33606.0,33605.0,0.07255348]
[1625506102958,1.40183982,33606.0,33604.0,4.275e-05]
[1625506103059,1.69174982,33606.0,33593.0,0.98256544]
[1625506103592,2.24874982,33606.0,33596.0,1.40333311]
[1625506103608,2.25074982,33606.0,33596.0,1.40333311]
[1625506103637,1.75074982,33606.0,33597.0,0.03107523]
[1625506103658,1.74577113,33604.0,33597.0,0.03107523]
[1625506103859,1.80477113,33604.0,33597.0,0.03107523]
[1625506103957,1.86377113,33604.0,33597.0,0.03107523]
[1625506104059,0.96230176,33598.0,33587.0,0.05741316]
[1625506104161,3.7798,33588.0,33587.0,0.05741316]
[1625506104263,4.06502,33588.0,33587.0,0.05741316]
[1625506104360,4.06502,33588.0,33587.0,0.04410472]
[1625506104562,4.12402,33588.0,33587.0,0.04410472]
[1625506104663,4.12402,33588.0,33587.0,0.01329454]
[1625506104763,4.18302,33588.0,33587.0,0.01329454]
[1625506105160,4.18302,33588.0,33584.0,0.01329482]
[1625506105861,5.577072,33588.0,33584.0,0.01329482]
[1625506106064,0.72172632,33585.0,33584.0,0.01329482]
[1625506106162,0.78072632,33585.0,33584.0,0.01329482]
[1625506106269,0.83972632,33585.0,33584.0,0.01329482]
[1625506106716,0.83972632,33585.0,33579.0,0.0574136]
[1625506106816,2.23278198,33585.0,33579.0,0.0574136]
[1625506107015,2.23278198,33585.0,33584.0,0.01329731]
[1625506107315,1.392888,33584.0,33576.0,0.05741391]
[1625506107416,1.451888,33584.0,33576.0,0.05741391]
[1625506107516,1.510888,33584.0,33576.0,0.0441165]
[1625506107767,1.510888,33584.0,33576.0,0.05730742]
[1625506108067,0.37525924,33577.0,33576.0,0.05730742]
[1625506108168,0.64764924,33577.0,33576.0,0.05730742]
[1625506108869,0.64764924,33577.0,33575.0,0.05730876]
[1625506113077,0.43425924,33577.0,33575.0,0.05730876]
[1625506114326,0.43425924,33577.0,33576.0,1.22831857]
[1625506114428,0.43425924,33577.0,33576.0,1.49246857]
[1625506114627,0.43425924,33577.0,33576.0,1.53203189]
[1625506114728,0.43425924,33577.0,33576.0,1.54967857]
[1625506116030,0.37525924,33577.0,33576.0,1.54967857]
[1625506119337,0.37525924,33577.0,33576.0,1.53658526]
[1625506119535,0.37525924,33577.0,33576.0,1.54966587]
[1625506120436,0.37525924,33577.0,33576.0,2.95324369]
[1625506120887,0.43425924,33577.0,33576.0,2.95324369]
[1625506121088,0.43425924,33577.0,33576.0,2.92677368]
[1625506121591,0.43425924,33577.0,33576.0,1.52319586]
[1625506121689,0.43425924,33577.0,33576.0,1.25904586]
[1625506122490,0.43425924,33577.0,33576.0,1.24596525]
[1625506122691,0.43425924,33577.0,33576.0,1.2590468]
[1625506123493,0.43425924,33577.0,33576.0,2.31165642]
[1625506124196,0.37525924,33577.0,33576.0,2.31165642]
[1625506125650,0.37525924,33577.0,33576.0,2.33812726]
[1625506126252,0.37525924,33577.0,33576.0,2.61425726]
[1625506127006,0.37525924,33577.0,33576.0,4.01762024]
[1625506127503,0.37525924,33577.0,33576.0,2.61425726]
[1625506128455,0.37525924,33577.0,33576.0,4.017515]
[1625506129405,0.19878814,33577.0,33576.0,4.017515]
[1625506130208,0.43936358,33577.0,33576.0,4.017515]
[1625506135018,0.43936358,33577.0,33576.0,2.61425726]
[1625506135121,0.43936358,33577.0,33576.0,2.33812726]
[1625506140533,0.43936358,33577.0,33576.0,3.74140992]
[1625506142393,0.43936358,33577.0,33576.0,2.33812726]
[1625506144445,0.26288836,33577.0,33576.0,2.33812726]
[1625506153466,0.26288836,33577.0,33576.0,3.03972042]
[1625506156123,0.26288836,33577.0,33576.0,4.44332792]
[1625506156624,0.26288836,33577.0,33576.0,4.66030792]
[1625506159374,0.26288836,33577.0,33576.0,4.44332792]
[1625506159525,0.08642107,33577.0,33576.0,4.44332792]
[1625506159724,0.14542107,33577.0,33576.0,4.44332792]
[1625506160376,0.14542107,33577.0,33576.0,4.68390336]
[1625506161029,0.84094806,33577.0,33576.0,4.68390336]
[1625506161230,0.78194806,33577.0,33576.0,4.68390336]
[1625506161328,0.08642107,33577.0,33576.0,4.68390336]
[1625506163092,1.82785438,33577.0,33576.0,6.27031946]
[1625506165648,1.82785438,33577.0,33576.0,6.28079618]
[1625506167152,1.82785438,33577.0,33576.0,6.27031946]
[1625506167350,1.82785438,33577.0,33576.0,6.28079596]
[1625506168202,1.82785438,33577.0,33576.0,6.27031946]
[1625506168605,1.82785438,33577.0,33576.0,6.28079591]
[1625506169653,1.74143331,33577.0,33576.0,6.04022047]
[1625506169853,1.74143331,33577.0,33576.0,6.02974402]
[1625506170205,1.74143331,33577.0,33576.0,6.04022064]
[1625506170456,1.74143331,33577.0,33576.0,6.52137152]
[1625506174618,1.5649616,33577.0,33576.0,6.52137152]
[1625506175067,1.5649616,33577.0,33576.0,6.04022064]
[1625506175218,1.5649616,33577.0,33576.0,6.02974402]
[1625506176421,1.8709316,33577.0,33576.0,6.02974402]
[1625506176524,1.9299316,33577.0,33576.0,6.02974402]
[1625506176623,1.9889316,33577.0,33576.0,6.02974402]
[1625506176724,2.47008248,33577.0,33576.0,6.27031946]
[1625506177080,5.08012935,33577.0,33576.0,4.68390336]
[1625506177772,5.08012935,33577.0,33576.0,4.65743252]
[1625506177974,5.02112935,33577.0,33576.0,4.65743252]
[1625506178174,5.02112935,33577.0,33576.0,3.25382502]
[1625506178275,5.02112935,33577.0,33576.0,3.28029879]
[1625506178575,5.02112935,33577.0,33576.0,4.69100419]
[1625506182285,5.02112935,33577.0,33576.0,4.66453042]
[1625506182635,5.02112935,33577.0,33576.0,3.25382502]
[1625506183296,5.02112935,33577.0,33576.0,2.02550645]
[1625506183643,5.54251944,33577.0,33576.0,2.55435166]
[1625506184247,5.54251944,33577.0,33576.0,3.78829008]
[1625506185748,5.54251944,33577.0,33576.0,2.55435166]
[1625506188054,5.60151944,33577.0,33576.0,2.55435166]
[1625506194712,5.60151944,33577.0,33576.0,0.80014888]
[1625506197767,5.60151944,33577.0,33576.0,0.27130367]
[1625506197768,7.1636662,33577.0,33576.0,0.27130367]
[1625506198068,7.1636662,33577.0,33576.0,0.25365699]
[1625506199774,7.1636662,33577.0,33576.0,5.699e-05]
[1625506200824,7.1636662,33577.0,33575.0,0.00011273]
[1625506201224,4.15821598,33576.0,33575.0,0.00011273]
[1625506201324,4.21721598,33576.0,33575.0,0.00011273]
[1625506201427,4.27621598,33576.0,33572.0,1.05607506]
[1625506201828,4.27621598,33576.0,33573.0,0.03000905]
[1625506201942,1.55800899,33574.0,33573.0,0.03000905]
[1625506202138,1.67600899,33574.0,33573.0,0.03000905]
[1625506202328,1.67600899,33574.0,33573.0,0.01235667]
[1625506202429,5.31176916,33574.0,33570.0,0.03000883]
[1625506202532,3.7529,33571.0,33570.0,0.03000883]
[1625506202679,3.8119,33571.0,33570.0,0.03000883]
[1625506202779,3.8709,33571.0,33570.0,0.03000883]
[1625506202881,7.98735491,33571.0,33570.0,0.03000883]
[1625506204986,7.98735491,33571.0,33569.0,0.0300089]
[1625506205336,2.24954117,33570.0,33569.0,0.0300089]
[1625506205536,2.65834117,33570.0,33569.0,0.0300089]
[1625506208250,2.65834117,33570.0,33569.0,1.0850713]
[1625506208751,1.44706308,33570.0,33569.0,1.0850713]
[1625506212461,1.44706308,33570.0,33569.0,0.0300089]
[1625506212561,1.15626308,33570.0,33569.0,0.0300089]
[1625506212860,1.15626308,33570.0,33569.0,1.08472822]
[1625506215369,1.15626308,33570.0,33569.0,0.0300089]
[1625506217023,0.118,33570.0,33569.0,0.0300089]
[1625506217421,2.36697321,33570.0,33569.0,0.38155261]
[1625506217924,2.36697321,33570.0,33569.0,0.36390031]
[1625506219073,2.36697321,33570.0,33569.0,0.0123566]
[1625506219423,2.36697321,33570.0,33568.0,0.03000785]
[1625506219674,1.03924925,33569.0,33568.0,0.03000785]
[1625506219774,1.15724925,33569.0,33568.0,0.03000785]
[1625506220178,1.15724925,33569.0,33568.0,1.08465613]
[1625506223081,1.03924925,33569.0,33568.0,1.08465613]
[1625506223286,1.04071758,33570.0,33568.0,1.08465613]
[1625506223485,1.04071758,33570.0,33568.0,1.40304613]
[1625506223586,1.04071758,33570.0,33569.0,0.03000536]
[1625506223834,1.76315691,33571.0,33569.0,6.23572104]
[1625506224134,1.76315691,33571.0,33570.0,0.03000461]
[1625506224233,0.72172632,33571.0,33570.0,2.31496659]
[1625506224334,0.24057544,33571.0,33570.0,2.31496659]
[1625506224986,1.04149872,33572.0,33570.0,2.79611747]
[1625506225084,1.10049872,33572.0,33570.0,2.79611747]
[1625506225184,1.10049872,33572.0,33571.0,0.03000417]
[1625506225435,0.059,33572.0,33571.0,2.31508637]
[1625506228094,0.059,33572.0,33571.0,3.72161667]
[1625506228798,0.118,33572.0,33571.0,3.72161667]
[1625506229351,0.118,33572.0,33571.0,2.31508637]
[1625506229800,0.059,33572.0,33571.0,2.31508637]
[1625506229900,1.10216179,33572.0,33571.0,2.60667637]
[1625506230433,0.059,33572.0,33571.0,2.60667637]
[1625506231356,0.059,33572.0,33571.0,4.0137759]
[1625506233504,0.118,33572.0,33571.0,4.0137759]
[1625506233754,1.16206586,33572.0,33571.0,4.0137759]
[1625506234157,1.10306586,33572.0,33571.0,4.0137759]
[1625506234911,1.79920821,33572.0,33571.0,4.7177744]
[1625506241575,3.0168768,33572.0,33571.0,4.7177744]
[1625506243085,1.79920821,33572.0,33571.0,4.7177744]
[1625506243934,1.79920821,33572.0,33571.0,4.70541974]
[1625506244183,1.79920821,33572.0,33571.0,4.71777373]
[1625506247691,2.13415821,33572.0,33571.0,4.42618373]
[1625506248594,4.74336408,33572.0,33571.0,3.0190842]
[1625506249094,4.98393952,33572.0,33571.0,3.0190842]
[1625506270148,4.98393952,33572.0,33571.0,3.3346742]
[1625506270250,4.64898952,33572.0,33571.0,3.3346742]
[1625506270546,4.40841408,33572.0,33571.0,3.3346742]
[1625506271147,3.01684921,33572.0,33571.0,4.98504794]
[1625506271247,3.01684921,33572.0,33571.0,10.01994794]
[1625506271647,1.79920821,33572.0,33571.0,10.01994794]
[1625506274002,1.79920821,33572.0,33571.0,11.60585403]
[1625506275507,1.79920821,33572.0,33571.0,10.01994794]
[1625506276004,1.79920821,33572.0,33571.0,11.60585011]
[1625506281424,1.79920821,33572.0,33571.0,6.57095011]
[1625506281717,0.75514235,33572.0,33571.0,6.57095011]
[1625506285776,1.8012801,33572.0,33571.0,6.57095011]
[1625506286278,1.8012801,33572.0,33571.0,11.23455011]
[1625506289487,0.75514235,33572.0,33571.0,11.23455011]
[1625506291635,1.27741614,33572.0,33571.0,11.76313058]
[1625506292437,2.32210878,33572.0,33571.0,11.76313058]
[1625506292987,1.27741614,33572.0,33571.0,11.76313058]
[1625506293538,2.32206122,33572.0,33571.0,11.76313058]
[1625506294089,1.27741614,33572.0,33571.0,11.76313058]
[1625506295741,1.27741614,33572.0,33571.0,7.09953058]
[1625506296392,2.32168903,33572.0,33571.0,5.51362841]
[1625506297848,2.64545903,33572.0,33571.0,5.19803841]
[1625506297948,2.70445903,33572.0,33571.0,4.95746297]
[1625506298652,5.31191679,33572.0,33571.0,3.54766467]
[1625506299213,5.31191679,33572.0,33571.0,2.31723579]
[1625506299503,5.79306767,33572.0,33571.0,2.31723579]
[1625506300506,7.3562744,33572.0,33571.0,1.26258247]
[1625506301719,7.3562744,33572.0,33571.0,0.55858397]
[1625506303765,7.3562744,33572.0,33571.0,0.0300035]
[1625506303870,7.3562744,33572.0,33571.0,0.55854188]
[1625506304213,7.3562744,33572.0,33571.0,0.91083391]
[1625506305121,7.3562744,33572.0,33571.0,0.64660038]
[1625506305522,7.3562744,33572.0,33571.0,0.11808282]
[1625506307427,7.3562744,33572.0,33571.0,0.0300035]
[1625506308026,7.3562744,33572.0,33571.0,0.01235399]
[1625506310082,7.4463744,33572.0,33571.0,0.01235399]
[1625506310381,7.3562744,33572.0,33571.0,0.01235399]
[1625506310682,7.3562744,33572.0,33570.0,0.01235828]
[1625506310884,7.3562744,33572.0,33571.0,0.00882737]
[1625506310986,7.3562744,33572.0,33571.0,0.01235831]
[1625506311085,0.92292088,33572.0,33571.0,0.01235831]
[1625506311385,7.33804771,33572.0,33571.0,0.01235831]
[1625506311484,7.33804771,33572.0,33569.0,0.10037024]
[1625506311685,4.85285946,33570.0,33569.0,0.10037024]
[1625506311786,4.91185946,33570.0,33569.0,0.10566659]
[1625506311886,4.97085946,33570.0,33569.0,0.10566659]
[1625506311986,4.97085946,33570.0,33569.0,0.11802475]
[1625506312287,4.97085946,33570.0,33569.0,0.10037024]
[1625506312692,4.97085946,33570.0,33569.0,0.01235816]
[1625506314192,6.53013334,33570.0,33569.0,0.01235816]
[1625506315455,6.53013334,33570.0,33568.0,0.01235816]
[1625506315745,6.53013334,33570.0,33569.0,0.012358]
[1625506316146,0.118,33570.0,33569.0,0.012358]
[1625506316245,0.118,33570.0,33568.0,0.01235784]
[1625506316544,0.118,33570.0,33569.0,0.01235769]
[1625506316645,6.52448209,33570.0,33569.0,0.01235769]
[1625506317094,6.52448209,33570.0,33567.0,0.01235771]
[1625506317397,4.8483179,33568.0,33567.0,0.01235771]
[1625506317546,4.9073179,33568.0,33567.0,0.01235771]
[1625506317646,5.20689334,33568.0,33567.0,0.01235771]
[1625506318099,5.20689334,33568.0,33567.0,0.1002968]
[1625506318401,5.20689334,33568.0,33567.0,0.11795063]
[1625506320959,5.20689334,33568.0,33567.0,0.64547319]
[1625506321258,5.20689334,33568.0,33567.0,0.29379148]
[1625506321659,3.82173385,33568.0,33567.0,0.55750749]
[1625506322060,5.21042347,33568.0,33567.0,0.55750749]
[1625506322913,5.21042347,33568.0,33567.0,0.85172749]
[1625506323963,3.82173385,33568.0,33567.0,1.20331051]
[1625506324263,3.82173385,33568.0,33567.0,0.85165541]
[1625506325567,3.82173385,33568.0,33567.0,1.20325536]
[1625506326115,3.82173385,33568.0,33567.0,0.85165541]
[1625506326215,3.82173385,33568.0,33567.0,0.55743541]
[1625506326716,3.82173385,33568.0,33567.0,0.5450777]
[1625506326816,3.82173385,33568.0,33567.0,0.55743497]
[1625506329017,4.10362385,33568.0,33567.0,0.55743497]
[1625506329624,5.49379809,33568.0,33567.0,0.0300111]
[1625506330580,5.49379809,33568.0,33567.0,0.01235727]
[1625506330982,7.05681929,33568.0,33567.0,0.01235727]
[1625506331134,0.64046544,33568.0,33567.0,0.01235727]
[1625506331333,5.50398917,33568.0,33565.0,0.01235919]